fUSD/lending_fUSD_20251210
["ID","MTS","AMOUNT","RATE_DAILY","PERIOD"]
[398131272,1765392645751,-176.17739378,0.0004005,7]
[398131273,1765392645761,-150.0,0.00040054,7]
[398131274,1765392645771,-150.0,0.00040073,7]
[398131275,1765392645781,-150.0,0.00040082,7]
[398131276,1765392645793,-150.0,0.00040084,7]
[398131277,1765392645803,-4585.72370564,0.00040115,4]
[398131278,1765392645812,-150.0,0.00040123,7]
[398131279,1765392645823,-150.0,0.00040123,7]
[398131280,1765392645836,-150.0,0.00040123,7]
[398131281,1765392645845,-150.0,0.00040123,7]
[398131282,1765392645855,-150.0,0.00040123,7]
[398131283,1765392645866,-150.0,0.00040123,7]
[398131284,1765392645875,-150.0,0.00040123,7]
[398131285,1765392645885,-150.0,0.00040123,7]
[398131286,1765392645895,-500.0,0.00040134,60]
[398131287,1765392645904,-500.0,0.00040134,60]
[398131290,1765392646041,-500.0,0.00040134,14]
[398131291,1765392646069,-3048.2416,0.00040135,2]
[398131292,1765392646080,-1000.0,0.00040135,120]
[398131293,1765392646093,-480.31,0.00040137,2]
[398131294,1765392646103,-150.0,0.00040144,7]
[398131295,1765392646114,-4585.72370564,0.00040148,4]
[398131296,1765392646124,-150.0,0.00040148,7]
[398131297,1765392646133,-150.0,0.00040158,7]
[398131298,1765392646143,-500.0,0.00040192,14]
[398131299,1765392646153,-150.0,0.00040202,7]
[398131300,1765392646165,-150.0,0.00040206,7]
[398131301,1765392646191,-150.0,0.0004021,7]
[398131302,1765392646202,-150.0,0.00040224,7]
[398131303,1765392646213,-150.0,0.00040262,7]
[398131304,1765392646224,-150.0,0.00040262,7]
[398131305,1765392646235,-150.0,0.00040268,7]
[398131306,1765392646245,-463.68,0.00040274,2]
[398131307,1765392646257,-150.0,0.00040277,7]
[398131308,1765392646268,-150.0,0.00040296,7]
[398131309,1765392646278,-150.0,0.00040299,7]
[398131310,1765392646289,-150.0,0.00040321,7]
[398131311,1765392646300,-150.0,0.0004033,7]
[398131312,1765392646311,-150.0,0.00040354,7]
[398131313,1765392646321,-150.0,0.00040365,7]
[398131314,1765392646332,-150.0,0.00040375,7]
[398131315,1765392646343,-150.0,0.00040375,7]
[398131316,1765392646353,-150.0,0.00040383,7]
[398131317,1765392646363,-150.0,0.00040392,7]
[398131318,1765392646374,-150.0,0.000404,7]
[398131319,1765392646384,-150.0,0.00040431,7]
[398131320,1765392646395,-150.0,0.0004044,7]
[398131321,1765392646405,-150.0,0.0004045,7]
[398131322,1765392646415,-150.0,0.00040454,7]
[398131323,1765392646426,-150.0,0.00040469,7]
[398131324,1765392646436,-150.0,0.00040469,7]
[398131325,1765392646447,-150.0,0.00040469,7]
[398131326,1765392646457,-150.0,0.00040469,7]
[398131327,1765392646468,-150.0,0.00040516,7]
[398131328,1765392646479,-150.0,0.00040526,7]
[398131329,1765392646489,-150.0,0.00040538,7]
[398131330,1765392646500,-150.0,0.00040556,7]
[398131331,1765392646511,-150.0,0.00040558,7]
[398131332,1765392646521,-150.0,0.00040573,7]
[398131333,1765392646532,-150.0,0.00040578,7]
[398131334,1765392646547,-150.0,0.00040584,7]
[398131335,1765392646558,-150.0,0.00040584,7]
[398131336,1765392646569,-326.46802951,0.000406,28]
[398131337,1765392646580,-150.0,0.00040601,7]
[398131338,1765392646591,-150.0,0.0004064,7]
[398131339,1765392646602,-150.0,0.00040642,7]
[398131340,1765392646613,-150.0,0.00040677,7]
[398131341,1765392646624,-150.0,0.00040677,7]
[398131342,1765392646634,-150.0,0.00040677,7]
[398131343,1765392646645,-150.0,0.00040677,7]
[398131344,1765392646656,-150.0,0.00040701,7]
[398131345,1765392646667,-1172.67,0.00040727,120]
[398131346,1765392646677,-150.0,0.00040729,7]
[398131347,1765392646688,-150.0,0.00040738,7]
[398131348,1765392646698,-150.0,0.00040752,7]
[398131349,1765392646709,-150.0,0.00040752,7]
[398131350,1765392646719,-4585.72370564,0.00040761,4]
[398131351,1765392646730,-150.0,0.00040763,7]
[398131352,1765392646741,-798.63702859,0.00040771,120]
[398131353,1765392646752,-150.0,0.0004078,7]
[398131354,1765392646763,-150.0,0.00040795,7]
[398131355,1765392646773,-150.0,0.00040815,7]
[398131356,1765392646783,-150.0,0.00040815,7]
[398131357,1765392646794,-150.0,0.00040815,7]
[398131358,1765392646805,-150.0,0.00040815,7]
[398131359,1765392646816,-150.0,0.00040815,7]
[398131360,1765392646826,-150.0,0.00040815,7]
[398131361,1765392646836,-150.0,0.00040825,7]
[398131362,1765392646846,-150.0,0.00040828,7]
[398131363,1765392646856,-150.0,0.00040884,7]
[398131364,1765392646867,-150.0,0.00040887,7]
[398131365,1765392646878,-150.0,0.00040892,7]
[398131366,1765392646893,-150.0,0.00040902,7]
[398131367,1765392646903,-150.0,0.00040903,7]
[398131368,1765392646915,-150.0,0.00040914,7]
[398131369,1765392646926,-150.0,0.00040949,7]
[398131370,1765392646937,-150.0,0.00040953,7]
[398131371,1765392646948,-4162.10695431,0.00040975,4]
[398131372,1765392647068,-155.51105436,0.00026636,52]
[398131373,1765392647088,-2160.70713976,0.00040975,4]
[398131374,1765392647101,-748.63230573,0.00040975,4]
[398131375,1765392647114,-340.86111214,0.00040975,4]
[398131376,1765392647127,-6344.86360496,0.00040975,4]
[398131377,1765392647137,-150.0,0.00040979,7]
[398131378,1765392647147,-150.0,0.00040988,7]
[398131379,1765392647157,-150.0,0.00040988,7]
[398131380,1765392647168,-5000.0,0.00040995,120]
[398131381,1765392647178,-150.0,0.00041011,7]
[398131382,1765392647189,-150.0,0.00041032,7]
[398131383,1765392647199,-500.0,0.00041034,2]
[398131384,1765392647209,-13757.1711169,0.00041035,4]
[398131385,1765392647218,-150.0,0.00041046,7]
[398131386,1765392647229,-150.0,0.00041046,7]
[398131387,1765392647239,-150.0,0.00041054,7]
[398131388,1765392647250,-162.39259309,0.00041061,17]
[398131389,1765392647259,-150.0,0.00041073,7]
[398131390,1765392647270,-4585.72370564,0.00041074,4]
[398131391,1765392647284,-150.0,0.00041074,7]
[398131392,1765392647296,-9171.44741128,0.00041075,4]
[398131393,1765392647306,-13757.1711169,0.00041085,4]
[398131394,1765392647317,-4585.72370564,0.00041086,4]
[398131395,1765392647329,-6187.92785469,0.00041086,4]
[398131396,1765392647339,-9171.44741128,0.00041087,4]
[398131397,1765392647350,-6187.92785469,0.00041087,4]
[398131398,1765392647360,-4585.72370564,0.00041088,4]
[398131399,1765392647371,-150.0,0.00041092,7]
[398131400,1765392647381,-150.0,0.00041092,7]
[398131401,1765392647392,-500.0,0.00041094,60]
[398131402,1765392647402,-9171.44741128,0.00041094,4]
[398131403,1765392647412,-12375.8557094,0.00041094,4]
[398131404,1765392647422,-500.0,0.00041095,60]
[398131405,1765392647432,-157.76494726,0.00041095,60]
[398131406,1765392647443,-500.0,0.00041095,60]
[398131407,1765392647454,-500.0,0.00041095,60]
[398131408,1765392647465,-369.81095403,0.00041095,60]
[398131409,1765392647475,-500.0,0.00041095,60]
[398131410,1765392647489,-500.0,0.00041095,60]
[398131411,1765392647500,-500.0,0.00041095,60]
[398131412,1765392647511,-500.0,0.00041095,60]
[398131413,1765392647525,-500.0,0.00041095,60]
[398131414,1765392647538,-500.0,0.00041095,60]
[398131415,1765392647549,-500.0,0.00041095,60]
[398131416,1765392647559,-500.0,0.00041095,60]
[398131417,1765392647570,-500.0,0.00041095,60]
[398131418,1765392647580,-500.0,0.00041095,60]
[398131419,1765392647591,-500.0,0.00041095,60]
[398131420,1765392647601,-500.0,0.00041095,60]
[398131421,1765392647611,-500.0,0.00041095,60]
[398131422,1765392647621,-500.0,0.00041095,60]
[398131423,1765392647631,-500.0,0.00041095,60]
[398131424,1765392647641,-500.0,0.00041095,60]
[398131425,1765392647651,-500.0,0.00041095,7]
[398131426,1765392647662,-500.0,0.00041095,60]
[398131427,1765392647675,-356.27,0.00041095,60]
[398131428,1765392647685,-500.0,0.00041095,2]
[398131429,1765392647695,-435.13464931,0.00041095,2]
[398131430,1765392647705,-300.0,0.00041095,60]
[398131431,1765392647715,-228.70235955,0.00041095,60]
[398131432,1765392647725,-500.0,0.00041095,60]
[398131433,1765392647735,-500.0,0.00041095,60]
[398131434,1765392647745,-500.0,0.00041095,60]
[398131435,1765392647754,-500.0,0.00041095,60]
[398131436,1765392647765,-500.0,0.00041095,60]
[398131437,1765392647775,-312.76,0.00041095,60]
[398131438,1765392647785,-500.0,0.00041095,60]
[398131439,1765392647796,-500.0,0.00041095,60]
[398131440,1765392647806,-500.0,0.00041095,60]
[398131441,1765392647816,-500.0,0.00041095,60]
[398131442,1765392647825,-500.0,0.00041095,60]
[398131443,1765392647835,-500.0,0.00041095,60]
[398131444,1765392647845,-500.0,0.00041095,60]
[398131445,1765392647855,-500.0,0.00041095,60]
[398131446,1765392647868,-500.0,0.00041095,60]
[398131447,1765392647878,-500.0,0.00041095,60]
[398131448,1765392647888,-500.0,0.00041095,60]
[398131449,1765392647897,-500.0,0.00041095,60]
[398131450,1765392647907,-500.0,0.00041095,60]
[398131451,1765392647916,-500.0,0.00041095,60]
[398131452,1765392647926,-500.0,0.00041095,60]
[398131453,1765392647936,-500.0,0.00041095,60]
[398131454,1765392647946,-733.42,0.00041095,60]
[398131455,1765392647956,-733.42,0.00041095,60]
[398131456,1765392647966,-733.42,0.00041095,60]
[398131457,1765392647977,-733.42,0.00041095,60]
[398131458,1765392647986,-733.42,0.00041095,60]
[398131459,1765392647996,-500.0,0.00041095,60]
[398131460,1765392648006,-500.0,0.00041095,60]
[398131461,1765392648015,-500.0,0.00041095,60]
[398131462,1765392648025,-500.0,0.00041095,60]
[398131463,1765392648035,-500.0,0.00041095,60]
[398131464,1765392648046,-508.57731863,0.00041095,60]
[398131465,1765392648056,-500.0,0.00041095,60]
[398131466,1765392648066,-500.0,0.00041095,60]
[398131467,1765392648076,-500.0,0.00041095,60]
[398131468,1765392648089,-500.0,0.00041095,60]
[398131469,1765392648099,-500.0,0.00041095,60]
[398131470,1765392648109,-500.0,0.00041095,25]
[398131471,1765392648119,-500.0,0.00041095,60]
[398131472,1765392648131,-500.0,0.00041095,60]
[398131473,1765392648141,-500.0,0.00041095,60]
[398131474,1765392648151,-500.0,0.00041095,60]
[398131475,1765392648161,-500.0,0.00041095,60]
[398131476,1765392648172,-500.0,0.00041095,60]
[398131477,1765392648181,-500.0,0.00041095,60]
[398131478,1765392648191,-632.98735935,0.00041095,60]
[398131479,1765392648201,-600.0,0.00041096,120]
[398131480,1765392648211,-552.78,0.00041096,2]
[398131481,1765392648222,-552.78,0.00041096,2]
[398131482,1765392648232,-552.78,0.00041096,2]
[398131483,1765392648241,-552.54,0.00041096,2]
[398131484,1765392648262,-2277.6,0.00041096,2]
[398131485,1765392648274,-170.29,0.00041096,2]
[398131486,1765392648284,-301.21,0.00041096,2]
[398131487,1765392648295,-170.29,0.00041096,2]
[398131488,1765392648305,-170.29,0.00041096,2]
[398131489,1765392648315,-170.29,0.00041096,2]
[398131490,1765392648324,-170.29,0.00041096,2]
[398131491,1765392648334,-340.07,0.00041096,2]
[398131492,1765392648345,-552.78,0.00041096,2]
[398131493,1765392648355,-552.78,0.00041096,2]
[398131494,1765392648366,-178.08,0.00041096,2]
[398131495,1765392648376,-552.78,0.00041096,2]
[398131496,1765392648387,-552.78,0.00041096,2]
[398131497,1765392648398,-552.45,0.00041096,2]
[398131498,1765392648410,-18342.8948226,0.00041097,4]
[398131499,1765392648421,-18563.7835641,0.00041097,4]
[398131500,1765392648433,-540.47,0.00041098,60]
[398131501,1765392648443,-500.0,0.00041098,60]
[398131502,1765392648455,-500.0,0.00041098,60]
[398131503,1765392648466,-552.45606173,0.00041098,60]
[398131504,1765392648477,-500.0,0.00041098,60]
[398131505,1765392648488,-444.88845389,0.00041098,60]
[398131506,1765392648499,-500.0,0.00041098,60]
[398131507,1765392648509,-500.0,0.00041098,60]
[398131508,1765392648520,-555.04802975,0.00041098,60]
[398131509,1765392648530,-500.0,0.00041098,60]
[398131510,1765392648541,-500.0,0.00041098,60]
[398131511,1765392648555,-500.0,0.00041098,60]
[398131512,1765392648566,-266.93962821,0.00041098,60]
[398131513,1765392648577,-33440.9571,0.00041107,2]
[398131514,1765392648588,-1000.0,0.00041107,2]
[398131515,1765392648599,-150.0,0.0004113,30]
[398131516,1765392648615,-150.0,0.0004113,30]
[398131517,1765392648626,-150.0,0.00041135,30]
[398131518,1765392648637,-6187.92785469,0.00041144,4]
[398131519,1765392648648,-150.0,0.00041151,30]
[398131520,1765392648659,-13757.1711169,0.00041154,4]
[398131521,1765392648670,-12375.8557094,0.00041154,4]
[398131522,1765392648681,-150.0,0.00041161,30]
[398131523,1765392648691,-150.0,0.00041161,30]
[398131524,1765392648702,-150.0,0.00041161,30]
[398131525,1765392648712,-500.0,0.00041163,2]
[398131526,1765392648722,-500.0,0.00041163,60]
[398131527,1765392648731,-6187.92785469,0.00041186,4]
[398131528,1765392648741,-150.0,0.00041196,30]
[398131529,1765392648751,-150.0,0.00041197,30]
[398131530,1765392648761,-150.0,0.00041199,30]
[398131531,1765392648771,-6187.92785469,0.00041203,4]
[398131532,1765392648781,-150.0,0.00041205,30]
[398131533,1765392648791,-13757.1711169,0.00041214,4]
[398131534,1765392648803,-12375.8557094,0.00041214,4]
[398131535,1765392648813,-150.0,0.0004123,30]
[398131536,1765392648823,-150.0,0.00041247,30]
[398131537,1765392648833,-150.0,0.00041259,30]
[398131538,1765392648843,-6187.92785469,0.00041263,4]
[398131539,1765392648853,-150.0,0.0004127,30]
[398131540,1765392648863,-13757.1711169,0.00041273,4]
[398131541,1765392648872,-12375.8557094,0.00041273,4]
[398131542,1765392648882,-150.0,0.00041276,30]
[398131543,1765392648892,-150.0,0.0004128,30]
[398131544,1765392648901,-151.0,0.00041283,120]
[398131545,1765392648911,-151.0,0.00041283,120]
[398131546,1765392649118,-151.0,0.00041283,120]
[398131547,1765392649131,-151.0,0.00041283,120]
[398131548,1765392649141,-153.565544,0.00041283,120]
[398131549,1765392649150,-151.0,0.00041283,120]
[398131550,1765392649162,-151.0,0.00041283,120]
[398131551,1765392649171,-151.0,0.00041283,120]
[398131552,1765392649180,-151.0,0.00041283,120]
[398131553,1765392649190,-151.0,0.00041283,120]
[398131554,1765392649199,-151.0,0.00041283,120]
[398131555,1765392649208,-6187.92785469,0.00041289,4]
[398131556,1765392649218,-4585.72370564,0.00041296,4]
[398131557,1765392649228,-150.0,0.00041299,30]
[398131558,1765392649238,-733.42,0.000413,60]
[398131559,1765392649248,-733.42,0.000413,60]
[398131560,1765392649257,-733.42,0.000413,60]
[398131561,1765392649267,-4585.72370564,0.0004132,4]
[398131562,1765392649277,-150.0,0.00041321,30]
[398131563,1765392649291,-6187.92785469,0.00041323,4]
[398131564,1765392649301,-9171.44741128,0.00041333,4]
[398131565,1765392649310,-12375.8557094,0.00041333,4]
[398131566,1765392649321,-150.0,0.00041334,30]
[398131567,1765392649331,-6187.92785469,0.00041336,4]
[398131568,1765392649341,-4585.72370564,0.00041343,4]
[398131569,1765392649352,-4585.72370564,0.00041346,4]
[398131570,1765392649362,-4585.72370564,0.00041351,4]
[398131571,1765392649371,-150.0,0.00041353,30]
[398131572,1765392649381,-150.0,0.00041356,30]
[398131573,1765392649391,-200.0,0.00041361,120]
[398131574,1765392649401,-6187.92785469,0.00041362,4]
[398131575,1765392649412,-150.0,0.00041368,30]
[398131576,1765392649422,-207.0,0.0004137,30]
[398131577,1765392649432,-9171.44741128,0.00041371,4]
[398131578,1765392649442,-12375.8557094,0.00041371,4]
[398131579,1765392649453,-151.0,0.00041372,120]
[398131580,1765392649463,-151.0,0.00041372,120]
[398131581,1765392649473,-233.22713,0.00041372,120]
[398131582,1765392649485,-523.694233,0.00041372,120]
[398131583,1765392649495,-523.694233,0.00041372,120]
[398131584,1765392649505,-523.694233,0.00041372,120]
[398131585,1765392649514,-523.694233,0.00041372,120]
[398131586,1765392649524,-554.696886,0.00041372,120]
[398131587,1765392649533,-554.696886,0.00041372,120]
[398131588,1765392649543,-160.004843,0.00041372,120]
[398131589,1765392649553,-151.9392,0.00041372,120]
[398131590,1765392649563,-4828.460199,0.00041372,120]
[398131591,1765392649573,-151.0,0.00041372,120]
[398131592,1765392649584,-554.696886,0.00041372,120]
[398131593,1765392649594,-4828.460199,0.00041372,120]
[398131594,1765392649604,-151.0,0.00041372,120]
[398131595,1765392649615,-554.696886,0.00041372,120]
[398131596,1765392649625,-4828.460199,0.00041372,120]
[398131597,1765392649634,-248.92597,0.00041372,120]
[398131598,1765392649644,-151.0,0.00041372,120]
[398131599,1765392649654,-4828.460199,0.00041372,120]
[398131600,1765392649664,-186.35965,0.00041372,120]
[398131601,1765392649674,-186.35965,0.00041372,120]
[398131602,1765392649687,-186.35965,0.00041372,120]
[398131603,1765392649697,-262.8,0.00041373,60]
[398131604,1765392649706,-500.0,0.00041373,60]
[398131605,1765392649716,-500.0,0.00041373,60]
[398131606,1765392649726,-500.0,0.00041373,60]
[398131607,1765392649735,-500.0,0.00041373,60]
[398131608,1765392649745,-733.42,0.00041374,60]
[398131609,1765392649755,-4585.72370564,0.00041381,4]
[398131610,1765392649765,-22928.6185282,0.00041381,4]
[398131611,1765392649774,-6187.92785469,0.00041381,4]
[398131612,1765392649784,-150.0,0.00041383,30]
[398131613,1765392649794,-150.0,0.00041388,30]
[398131614,1765392649805,-9171.44741128,0.00041391,4]
[398131615,1765392649815,-37127.5671281,0.00041391,4]
[398131616,1765392649825,-12375.8557094,0.00041392,4]
[398131617,1765392649838,-12375.8557094,0.00041393,4]
[398131618,1765392649848,-375.79404679,0.000414,60]
[398131619,1765392649859,-500.0,0.000414,2]
[398131620,1765392649870,-500.0,0.000414,60]
[398131621,1765392649881,-500.0,0.000414,60]
[398131622,1765392649891,-443.6459,0.000414,60]
[398131623,1765392649902,-75088.08219276,0.00041401,30]
[398131624,1765392649914,-178.76548,0.00041402,120]
[398131625,1765392649929,-151.0,0.00041402,120]
[398131626,1765392649940,-156.268125,0.00041402,120]
[398131627,1765392649951,-169.672771,0.00041402,120]
[398131628,1765392649962,-151.0,0.00041402,120]
[398131629,1765392649973,-368.434564,0.00041402,120]
[398131630,1765392649983,-368.434564,0.00041402,120]
[398131631,1765392649994,-368.434564,0.00041402,120]
[398131632,1765392650003,-368.434564,0.00041402,120]
[398131633,1765392650014,-151.0,0.00041402,120]
[398131634,1765392650023,-151.0,0.00041402,120]
[398131635,1765392650033,-151.0,0.00041402,120]
[398131636,1765392650043,-151.0,0.00041402,120]
[398131637,1765392650055,-151.0,0.00041402,120]
[398131638,1765392650064,-160.263344,0.00041402,120]
[398131639,1765392650074,-151.0,0.00041402,120]
[398131640,1765392650087,-151.0,0.00041402,120]
[398131641,1765392650098,-151.0,0.00041402,120]
[398131642,1765392650108,-151.0,0.00041402,120]
[398131643,1765392650117,-151.0,0.00041402,120]
[398131644,1765392650128,-151.0,0.00041403,5]
[398131645,1765392650137,-151.0,0.00041403,5]
[398131646,1765392650147,-151.0,0.00041403,5]
[398131647,1765392650156,-151.0,0.00041403,5]
[398131648,1765392650168,-150.0,0.00041403,30]
[398131649,1765392650178,-151.0,0.00041413,120]
[398131650,1765392650187,-151.0,0.00041413,120]
[398131651,1765392650197,-156.3254,0.00041413,120]
[398131652,1765392650206,-151.0,0.00041413,120]
[398131653,1765392650215,-151.0,0.00041413,120]
[398131654,1765392650225,-215.750823,0.00041413,120]
[398131655,1765392650234,-151.0,0.00041413,120]
[398131656,1765392650244,-156.222831,0.00041413,120]
[398131657,1765392650253,-150.0,0.0004142,30]
[398131658,1765392650263,-6187.92785469,0.00041426,4]
[398131659,1765392650272,-150.0,0.00041431,30]
[398131660,1765392650282,-151.0,0.00041436,120]
[398131661,1765392650292,-151.0,0.00041436,120]
[398131662,1765392650302,-151.0,0.00041436,120]
[398131663,1765392650311,-294.859152,0.00041436,120]
[398131664,1765392650322,-151.0,0.00041436,120]
[398131665,1765392650331,-151.0,0.00041436,120]
[398131666,1765392650340,-203.624196,0.00041436,120]
[398131667,1765392650350,-150.0,0.00041445,30]
[398131668,1765392650360,-500.0,0.00041446,60]
[398131669,1765392650369,-500.0,0.00041446,60]
[398131670,1765392650378,-500.0,0.00041446,60]
[398131671,1765392650387,-12375.8557094,0.00041452,4]
[398131672,1765392650397,-287.89786615,0.00041466,2]
[398131673,1765392650407,-4379.0,0.00041471,7]
[398131674,1765392650416,-6187.92785469,0.00041489,4]
[398131675,1765392650425,-733.42,0.00041498,60]
[398131676,1765392650435,-1000.0,0.00041499,120]
[398131677,1765392650445,-12375.8557094,0.00041499,4]
[398131678,1765392650454,-162.39259308,0.000415,17]
[398131679,1765392650464,-232.17034156,0.00041507,30]
[398131680,1765392650475,-150.0,0.00041507,30]
[398131681,1765392650485,-150.0,0.00041507,30]
[398131682,1765392650495,-150.0,0.00041507,30]
[398131683,1765392650505,-181.70194615,0.00041507,30]
[398131684,1765392650515,-150.0,0.00041507,30]
[398131685,1765392650526,-150.0,0.00041507,30]
[398131686,1765392650536,-150.0,0.00041507,30]
[398131687,1765392650547,-288.49817923,0.00041507,30]
[398131688,1765392650558,-165.40022359,0.00041507,30]
[398131689,1765392650568,-150.0,0.00041507,30]
[398131690,1765392650578,-150.0,0.00041507,30]
[398131691,1765392650589,-150.0,0.00041507,30]
[398131692,1765392650598,-150.0,0.00041507,30]
[398131693,1765392650609,-151.0,0.00041509,120]
[398131694,1765392650619,-151.0,0.00041509,120]
[398131695,1765392650628,-151.0,0.00041509,120]
[398131696,1765392650637,-368.434564,0.00041509,120]
[398131697,1765392650647,-368.434564,0.00041509,120]
[398131698,1765392650657,-368.434564,0.00041509,120]
[398131699,1765392650666,-368.434564,0.00041509,120]
[398131700,1765392650677,-151.0,0.00041509,120]
[398131701,1765392650686,-151.0,0.00041509,120]
[398131702,1765392650696,-151.0,0.00041509,120]
[398131703,1765392650705,-151.0,0.0004151,30]
[398131704,1765392650715,-12375.8557094,0.00041512,4]
[398131705,1765392650724,-151.0,0.00041512,120]
[398131706,1765392650735,-523.694233,0.00041512,120]
[398131707,1765392650746,-523.694233,0.00041512,120]
[398131708,1765392650757,-523.694233,0.00041512,120]
[398131709,1765392650767,-523.694233,0.00041512,120]
[398131710,1765392650778,-554.696886,0.00041512,120]
[398131711,1765392650789,-554.696886,0.00041512,120]
[398131712,1765392650804,-4828.460199,0.00041512,120]
[398131713,1765392650816,-151.0,0.00041512,120]
[398131714,1765392650826,-554.696886,0.00041512,120]
[398131715,1765392650838,-4828.460199,0.00041512,120]
[398131716,1765392650849,-151.0,0.00041512,120]
[398131717,1765392650860,-554.696886,0.00041512,120]
[398131718,1765392650871,-4828.460199,0.00041512,120]
[398131719,1765392650883,-151.0,0.00041512,120]
[398131720,1765392650894,-4828.460199,0.00041512,120]
[398131721,1765392650905,-186.35965,0.00041512,120]
[398131722,1765392650921,-186.35965,0.00041512,120]
[398131723,1765392650934,-186.35965,0.00041512,120]
[398131724,1765392650945,-12375.8557094,0.00041518,4]
[398131725,1765392650957,-151.0,0.00041519,120]
[398131726,1765392650968,-151.0,0.00041519,120]
[398131727,1765392650979,-151.0,0.00041519,120]
[398131728,1765392650990,-151.0,0.00041519,5]
[398131729,1765392651000,-151.0,0.00041519,5]
[398131730,1765392651012,-151.0,0.00041519,5]
[398131731,1765392651023,-233.482649,0.00041519,5]
[398131732,1765392651033,-18563.7835641,0.00041519,4]
[398131733,1765392651044,-326.46802951,0.00041522,28]
[398131734,1765392651061,-356.31541422,0.00041522,2]
[398131735,1765392651071,-10851.67167318,0.00041522,15]
[398131736,1765392651082,-8236.42604674,0.00041528,2]
[398131737,1765392651212,-8715.61707547,0.00041528,2]
[398131738,1765392651222,-53.47997336,0.00041528,120]
[398131739,1765392651323,-327.71800197,0.00022791,2]
[398131740,1765392651333,-152.0,0.00036974,2]
[398131741,1765392651343,-200.0,0.00036974,2]
[398131742,1765392651354,-354.2958449,0.00037279,2]
[398131743,1765392738907,-500.0,0.00017873,2]
[398131744,1765392738930,-305.83835003,0.00017873,2]
[398131745,1765392854004,300.0,0.0001966,119]
[398131746,1765392854606,-87.34446213,0.00017873,2]
[398131747,1765392854631,-152.37446444,0.0001966,2]
[398131748,1765392856194,-97.62553556,0.0001966,2]
[398131749,1765392856221,-81.76464867,0.00022325,2]
[398131750,1765392857623,-168.23535133,0.00022325,2]
[398131751,1765392857648,-40.21641907,0.00022325,119]
[398131752,1765392862192,-186.40748798,0.00022325,119]
[398131760,1765392908272,-287.82395899,0.00017873,2]
[398131761,1765392910846,-194.26052587,0.00017873,2]
[398131762,1765392979590,-18.88910906,0.00017873,2]
[398131763,1765392979614,-161.64677112,0.00017873,2]
[398131764,1765392981751,-226.8576687,0.00017873,2]
[398131765,1765393203931,-111.49556018,0.00017873,2]
[398131766,1765393203957,-304.94258438,0.00017873,2]
[398131767,1765393205463,-195.05741562,0.00017873,2]
[398131768,1765393205489,-27.72154367,0.00017873,2]
[398131769,1765393207695,-227.74088097,0.00017873,2]
[398131770,1765393210127,-244.53757536,0.00017873,2]
[398131771,1765393210156,-55.46242464,0.00017873,2]
[398131772,1765393212215,-212.94495013,0.00017873,2]
[398131774,1765393270024,300.0,0.0001966,119]
[398131775,1765393278962,-165.33776858,0.00017873,2]
[398131776,1765393278988,-250.0,0.0001966,2]
[398131777,1765393279013,-3.71065356,0.00021936,119]
[398131778,1765393281545,-168.86440661,0.00021936,119]
[398131779,1765393396404,274.14,0.00013699,2]
[398131780,1765393398927,-274.14,0.00020187,2]
[398131781,1765393398951,-24.85650447,0.00021936,119]